Cogmind - Beta 16 @@@ ROGUE MODE // 2025.12.01 @ 04:33:35 Player: Red Box Result: Destroyed by P-60 Hacker with Shock Rifle Performance ------------- Evolutions (0) 0 Regions Visited (4) 800 Robots Destroyed (60) 300 Value Destroyed (1324) 1324 Prototype IDs (12) 240 Alien Tech Used (0) 0 Bonus (0) 0 TOTAL SCORE: 2664 Bonus ------- None Cogmind --------- Core Integrity 0/250 Matter 282/300 Energy 200/200 System Corruption 1% Temperature Cool (4) Movement Treading (260) Ox1 Location -9/Recycling Parts ------- > --- POWER (1) -------- Subdweller Power Source > --- PROPULSION (2) --- Spiked Treads (fused) Armored Wheel > --- UTILITY (2) ------ Disposable Heat Sink Large Storage Unit > --- WEAPON (2) ------- Subdweller Machine Gun Barrage Gun > --- INVENTORY (15) --- Subdweller Power Source Improved Treads Improved Treads Armored Wheel Armored Wheel Subdweller Monowheel Subdweller Monowheel Scrap Shield Tower Shield Subdweller Machine Gun Heavy Battle Rifle Subdweller Shrapnel Launcher Makeshift Hammer Peak State ------------ > --- POWER ------------ Subdweller Power Source > --- PROPULSION ------- Spiked Treads Armored Wheel > --- UTILITY ---------- Large Storage Unit Improved Terrain Scanner > --- WEAPON ----------- Assault Rifle Heavy Battle Rifle > --- INVENTORY -------- Improved Treads Improved Treads Armored Wheel Armored Wheel Armored Wheel Subdweller Monowheel Improved Heat Sink Scrap Shield Tower Shield Heavy Assault Rifle Battle Rifle Barrage Gun Subdweller Shrapnel Launcher [Rating: 19] Favorites ----------- Power Ion Engine Engine Ion Engine Propulsion Armored Wheel Treads Light Treads Leg Aluminum Leg Wheel Armored Wheel Utility Large Storage Unit Device Improved Terrain Scanner Storage Large Storage Unit Protection Core Shielding Weapon Assault Rifle Ballistic Gun Assault Rifle Launcher Subdweller Shrapnel Launcher Special Weapon Mining Laser Build | -11 -10 -10 -10 -9 ------- Run | Yrd Mat Min Sub Rec Slots Evolved . | . . . . . Power . | . . . . . Propulsion . | . . . . . Utility . | . . . . . Weapon . | . . . . . Parts Attached 34 | 7 13 2 12 . Power 4 | 1 2 . 1 . Engine 4 | 1 2 . 1 . Core . | . . . . . Reactor . | . . . . . Propulsion 11 | 2 6 . 3 . Treads 6 | . 4 . 2 . Leg 2 | 2 . . . . Wheel 3 | . 2 . 1 . Hover . | . . . . . Flight . | . . . . . Utility 7 | 2 3 . 2 . Device 2 | 1 . . 1 . Storage 3 | 1 2 . . . Processor . | . . . . . Hackware . | . . . . . Protection 2 | . 1 . 1 . Artifact . | . . . . . Weapon 12 | 2 2 2 6 . Energy Gun . | . . . . . Energy Cannon . | . . . . . Ballistic Gun 10 | 2 1 1 6 . Ballistic Cannon . | . . . . . Launcher 1 | . . 1 . . Special Weapon 1 | . 1 . . . Impact Weapon . | . . . . . Slashing Weapon . | . . . . . Piercing Weapon . | . . . . . Special Melee Weapon . | . . . . . Unidentified Prototypes . | . . . . . Parts Lost 7 | . . 1 6 . Power 1 | . . . 1 . Propulsion 2 | . . . 2 . Utility 1 | . . . 1 . Weapon 3 | . . 1 2 . Highest Loss Streak 2 | . . 1 2 . To Critical Strikes . | . . . . . Average Backups 11 | 5 9 13 12 13 Power . | . . . . 1 Propulsion 5 | 3 4 7 6 6 Utility 2 | . 1 3 2 2 Weapon 2 | 1 2 3 3 4 Tool/Special . | . . . . . Unused Backups 19 | . 5 . 4 10 Power 1 | . . . . 1 Propulsion 9 | . 2 . 1 6 Utility 4 | . 1 . 2 1 Weapon 5 | . 2 . 1 2 Tool/Special . | . . . . . Average Slot Usage (%) 96 | . 99 99 94 100 Engine 11 | . 14 14 8 14 Treads 13 | . 13 14 13 14 Leg 3 | . 12 . . . Wheel 10 | . 2 14 14 14 Device 8 | . 6 . 11 14 Storage 13 | . 14 14 13 14 Protection 5 | . 7 14 2 . Ballistic Gun 25 | . 26 27 24 28 Launcher 1 | . . . 2 . Peak Build Rating 19 | 9 11 11 19 19 Average Rating 12 | 5 8 10 14 19 On Entrance 9 | . 9 10 10 19 Avg Prop Armor Cover (%) 12 | . 11 10 13 14 Naked Turns . | . . . . . Heaviest Build 34 | 14 30 30 34 33 Greatest Support 40 | 20 40 20 23 12 Greatest Overweight (x) 4 | 4 2 2 2 2 Average Overweight (x) 1 | . . 1 1 2 Largest Inventory Capacity 15 | 8 15 15 15 15 Average Capacity 13 | 7 10 15 14 15 Most Carried 15 | 7 15 15 15 15 Average Carried 12 | 5 9 14 14 15 Final Capacity 15 | 8 15 15 15 15 Final Carried 15 | 7 15 14 15 15 Class Distribution -------------------- 86% | Mutant 13% | Scavenger-Mutant Dominant Class ---------------- Mutant | -10/Materials Mutant | -10/Mines Mutant | -10/Subcaves Mutant | -9/Recycling Resources | -11 -10 -10 -10 -9 ----------- Run | Yrd Mat Min Sub Rec Matter Collected 2052 | 378 601 202 851 20 Remotely . | . . . . . Salvage Created 1640 | 199 613 194 591 43 Parts 119 | 17 40 19 38 5 Haulers Intercepted 1 | . 1 . . . Recyclers Shooed 2 | . 2 . . . Parts Field Recycled . | . . . . . Retrieved Matter . | . . . . . Parts Self-Destructed 10 | . . . 10 . Prevented . | . . . . . Parts Restored . | . . . . . Kills | -11 -10 -10 -10 -9 ------- Run | Yrd Mat Min Sub Rec Combat Hostiles Destroyed 43 | . 13 11 18 1 Guns 31 | . 13 5 12 1 Cannons 1 | . . . 1 . AOE 11 | . . 6 5 . Classes Destroyed 11 | 2 4 1 3 1 Worker 1 | . . 1 . . Tunneler 7 | 7 . . . . Hauler 1 | . 1 . . . Recycler 3 | 1 2 . . . Turret 2 | . . . 2 . Watcher 2 | . 2 . . . Swarmer 19 | . 6 9 4 . Grunt 14 | . 7 3 4 . Sentry 1 | . . . 1 . Programmer 1 | . . . . 1 Subdweller 9 | . . . 9 . Best Kill Streak 7 | 3 4 7 6 1 Combat Bots Only 6 | . 3 6 4 1 Max Kills in Single Turn 4 | 1 2 3 4 1 Gunslinging 1 | . 1 . . . Exploded 3 | . . 2 3 . Melee . | . . . . . Uniques/NPCs Destroyed . | . . . . . Combat | -11 -10 -10 -10 -9 -------- Run | Yrd Mat Min Sub Rec Hostile Shots Fired 140 | . 47 19 67 7 Missed 32 | . 6 5 19 2 Hits 108 | . 41 14 48 5 Projectile 108 | . 41 14 48 5 Critical Strikes 5 | . 1 . 3 1 Actively Blocked 2 | . 1 . 1 . Damage Taken 1584 | . 418 177 917 72 Core 255 | . 74 . 166 15 Absorbed by Shields . | . . . . . Redirected to Shielding 28 | . 11 . 17 . Regen/Repaired (Parts) 33 | . 33 . . . Core Remaining (%) 100 | 100 . . . . Volleys Fired 235 | 34 64 15 120 2 Largest 2 | 2 2 2 2 2 Hottest 120 | 40 100 40 120 58 Shots Fired 377 | 68 117 25 163 4 Gun 342 | 68 106 19 145 4 Cannon . | . . . . . Launcher 14 | . . 6 8 . Special 21 | . 11 . 10 . Kinetic 356 | 68 106 25 153 4 Thermal 21 | . 11 . 10 . Explosive . | . . . . . Electromagnetic . | . . . . . Robot Hit Streak 22 | 6 6 16 22 1 Robot Miss Streak 5 | 5 5 2 2 2 Penetration Max . | . . . . . Secondary Targets 4 | . 2 1 1 . Max Gunslinging Chain 1 | . 1 1 1 . Shots Hit Robots 185 | 37 61 16 70 1 Core Hits 99 | 13 30 18 37 1 Critical Kills . | . . . . . Critical Parts Destroyed 4 | 2 1 1 . . Critical Strikes 4 | 2 1 1 . . Destroy 4 | 2 1 1 . . Melee Attacks . | . . . . . Impact . | . . . . . Slashing . | . . . . . Piercing . | . . . . . Sneak Attacks . | . . . . . Combat Hostiles . | . . . . . Follow-up Attacks . | . . . . . Damage Inflicted 3498 | 392 795 773 1497 41 Guns 2436 | 392 793 209 1001 41 Cannons . | . . . . . Explosions 1036 | . . 564 472 . Melee . | . . . . . Ramming 2 | . 2 . . . Kinetic 3472 | 392 793 773 1473 41 Thermal 24 | . . . 24 . Explosive . | . . . . . Electromagnetic . | . . . . . Impact . | . . . . . Slashing . | . . . . . Piercing . | . . . . . Highest Corruption 1 | . 1 1 1 1 Average Corruption 1 | . 1 1 1 1 Corruption Purged . | . . . . . Corruption Blocked . | . . . . . Effects 39 | . 1 5 30 3 Message Errors 8 | . . 1 7 . Matter Fused 9 | . . . 8 1 Heat Flow Errors 4 | . . . 4 . Energy Discharges 3 | . 1 1 1 . Parts Fused 2 | . . . 1 1 Data Loss (minor) 6 | . . 2 3 1 Data Loss (major) 2 | . . . 2 . Misfires 4 | . . 1 3 . Weapon Failures 1 | . . . 1 . Overload Shots . | . . . . . Overflow Damage 47 | . . 32 15 . Projectiles . | . . . . . Explosions 47 | . . 32 15 . Melee . | . . . . . Knockbacks . | . . . . . Impact . | . . . . . Kinetic . | . . . . . Secondary . | . . . . . Self-Inflicted Damage 85 | . . 31 54 . Shots 3 | . . 1 2 . Rammed . | . . . . . Targets Rammed 1 | . 1 . . . Kicked 1 | . 1 . . . Crushed . | . . . . . Highest Temperature 254 | . 60 2 254 8 Average Temperature 39 | . 16 2 106 5 Received Heat Transfer 811 | . 165 36 610 . Siege Activations . | . . . . . Martial Activations . | . . . . . Shielding Activations . | . . . . . Robots Disrupted . | . . . . . Combat Hostiles . | . . . . . Robots Corrupted . | . . . . . Combat Hostiles . | . . . . . Parts Fried . | . . . . . Impact Corruptions . | . . . . . Robots Melted . | . . . . . Combat Hostiles . | . . . . . Parts Melted . | . . . . . Heat Transferred 50 | . . . 50 . Parts Sabotaged . | . . . . . Parts Stolen . | . . . . . Parts Stripped . | . . . . . Power Chain Reactions . | . . . . . Alert | -11 -10 -10 -10 -9 ------- Run | Yrd Mat Min Sub Rec Maximum Alert Level . | . . . . . Low Security (%) 100 | 100 100 100 . 100 Level 1 . | . . . . . Level 2 . | . . . . . Level 3 . | . . . . . Level 4 . | . . . . . Level 5 . | . . . . . High Security . | . . . . . Max Security . | . . . . . Peak Influence 161 | 10 136 161 . 80 Initial 18 | . . 18 . . Average 36 | 1 38 64 . 16 Influence Increases 1277 | 40 472 321 255 189 Destroy 0b10 Robot/C 720 | . 260 220 220 20 Destroy 0b10 Robot/NC 70 | 40 25 5 . . Destroy Leader 126 | . 66 40 20 . Allied During Kill 16 | . . 16 . . Successful Hack 67 | . 49 . . 18 Select Force Hacks 210 | . 60 . . 150 Destroy Structure 53 | . 12 40 . 1 Lose Combat Pursuer 15 | . . . 15 . Influence Decreases 1250 | 40 425 333 290 162 Entered New Map 48 | . . 29 19 . Time Decay 1172 | 40 425 274 271 162 Lost Part 10 | . . 10 . . Lost Ally 20 | . . 20 . . Squads Dispatched 4 | . 4 . . . Investigation 3 | . 3 . . . Extermination . | . . . . . Reinforcement 1 | . 1 . . . Assault . | . . . . . Garrison . | . . . . . Intercept . | . . . . . Searches Triggered . | . . . . . Construction Impeded . | . . . . . Haulers Reinforced . | . . . . . Active Scanning Responses . | . . . . . Cargo Convoy Interrupts . | . . . . . Stealth | -11 -10 -10 -10 -9 --------- Run | Yrd Mat Min Sub Rec Distress Signals . | . . . . . Communications Jammed . | . . . . . Distress Signals . | . . . . . Times Spotted 53 | . 21 10 20 2 Peak Tracking Total 6 | . 3 5 6 2 Tactical Retreats 1 | . . . 1 . Traps | -11 -10 -10 -10 -9 ------- Run | Yrd Mat Min Sub Rec Traps Triggered 2 | . 1 . 1 . Indirectly . | . . . . . Trap Hack Attempts . | . . . . . Triggered . | . . . . . Disarmed . | . . . . . Reprogrammed . | . . . . . Reused . | . . . . . Traps Extracted . | . . . . . Installed . | . . . . . Triggered . | . . . . . Machines | -11 -10 -10 -10 -9 ---------- Run | Yrd Mat Min Sub Rec Machines Disabled 3 | . . . 3 . Max in Single Turn 2 | . . . 2 . Machines Repaired . | . . . . . Machines Dismantled . | . . . . . Machines Sabotaged . | . . . . . Overloaded Fab Kills . | . . . . . Hacking | -11 -10 -10 -10 -9 --------- Run | Yrd Mat Min Sub Rec Machines Accessed 22 | . 10 1 1 10 Terminals 13 | . 7 1 . 5 Fabricators . | . . . . . Repair Stations 1 | . 1 . . . Recycling Units 7 | . 2 . . 5 Scanalyzers . | . . . . . Garrison Access . | . . . . . Total Hacks 75 | . 37 2 1 35 Successful 41 | . 19 . 1 21 Failed 33 | . 18 2 . 13 Catastrophic 4 | . 3 . . 1 Database Lockouts 1 | . . . . 1 Manual 47 | . 21 2 . 24 Terminals 51 | . 26 2 . 23 Fabricators . | . . . . . Repair Stations 2 | . 2 . . . Recycling Units 21 | . 9 . . 12 Scanalyzers . | . . . . . Garrison Access . | . . . . . Terminal Hacks 8 | . 6 . 1 1 Robot Analysis 4 | . 3 . . 1 Locate Traps 2 | . 2 . . . Recall Reinforcements 1 | . 1 . . . Proto ID Catalog 1 | . . . 1 . Fabricator Hacks . | . . . . . Repair Station Hacks 2 | . 2 . . . Scan Component 1 | . 1 . . . Repair 1 | . 1 . . . Recycling Unit Hacks 6 | . 2 . . 4 Retrieve Components 6 | . 2 . . 4 Scanalyzer . | . . . . . Garrison Access Hacks . | . . . . . Unauthorized Hacks 25 | . 9 . . 16 Terminals 17 | . 6 . . 11 Track 2 | . . . . 2 Botnet 5 | . 1 . . 4 Skim 10 | . 5 . . 5 Fabricators . | . . . . . Repair Stations . | . . . . . Recycling Units 8 | . 3 . . 5 Reject 1 | . 1 . . . Tunnel 7 | . 2 . . 5 Scanalyzers . | . . . . . Garrison Access . | . . . . . Data Cores Recovered . | . . . . . Used . | . . . . . Hacking Detections 18 | . 10 1 . 7 Full Trace Events 5 | . 3 1 . 1 Feedback Events 1 | . 1 . . . Corruption 1 | . 1 . . . Feedback Blocked . | . . . . . Robot Schematics Acquired . | . . . . . Robots Built . | . . . . . Authchips . | . . . . . Time . | . . . . . Total Robot Build Rating . | . . . . . Part Schematics Acquired . | . . . . . Parts Built . | . . . . . Authchips . | . . . . . Time . | . . . . . Total Part Build Rating . | . . . . . Part Studies Acquired . | . . . . . Parts Repaired 1 | . 1 . . . Time 44 | . 44 . . . Parts Recycled . | . . . . . Recycled Matter . | . . . . . Retrieved Matter . | . . . . . Retrieved Components 18 | . 11 . . 7 Parts Scanalyzed . | . . . . . Part Schematics Acquired . | . . . . . Parts Damaged . | . . . . . Bothacking | -11 -10 -10 -10 -9 ------------ Run | Yrd Mat Min Sub Rec Used RIF Installer . | . . . . . Robots Hacked . | . . . . . Non-combat . | . . . . . Combat . | . . . . . Robot Hacks Applied . | . . . . . Relay Couplers Released . | . . . . . Fabnet Peak Effective % . | . . . . . Robots Rewired . | . . . . . Allies Hacked . | . . . . . Hacks Repelled . | . . . . . Allies | -11 -10 -10 -10 -9 -------- Run | Yrd Mat Min Sub Rec Total Allies 3 | . . 3 . . Largest Group 3 | . . 3 1 . Highest-Rated Group 40 | . . 40 16 . Highest-Rated Ally 16 | . . 16 16 . Total Orders 7 | . . 4 3 . STAY 4 | . . 2 2 . FOLLOW 3 | . . 2 1 . Ally Attacks 5 | . . 3 2 . Total Damage 27 | . . 10 17 . Kills . | . . . . . Allies Corrupted . | . . . . . Allies Melted . | . . . . . Intel | -11 -10 -10 -10 -9 ------- Run | Yrd Mat Min Sub Rec Active Infowar (turns) 2538 | 4 1051 . 1483 . Terrain 2538 | 4 1051 . 1483 . Robot Analysis Total 4 | . 3 . . 1 Derelict Logs Recovered 3 | . . 1 2 . Drone Launches . | . . . . . Drone Recoveries . | . . . . . Exploration | -11 -10 -10 -10 -9 ------------- Run | Yrd Mat Min Sub Rec Turns Passed 7543 | 347 2201 737 3614 644 Spaces Moved 5112 | 181 1287 560 2590 494 Core 15 | 15 . . . . Treads 432 | . 423 6 3 . Legs 744 | 166 578 . . . Wheels 3921 | . 286 554 2587 494 Hover . | . . . . . Flight . | . . . . . Fastest Speed 50 | 50 115 120 90 120 Average Speed 123 | 125 132 121 119 120 Slowest Speed 260 | 250 240 240 260 120 Overloaded Moves . | . . . . . Propulsion Burnouts . | . . . . . Robots Hopped . | . . . . . Potential Cave-ins 3 | . . . 3 . Cave-ins Triggered . | . . . . . Exploration Rate (%) 77 | 7 99 99 97 87 Regions Visited 4 Branch Regions 3 Pre-discovered Areas 8 | . 2 . 1 5 Known Exits Taken . | . . . . . Unknown Exits Taken 4 | 1 1 1 1 . Scrap Searched 9 | . . 1 8 . Spaces Dug 45 | . 11 29 5 . Terrain Destroyed 168 | . 11 70 86 1 Melee . | . . . . . Projectile 17 | . 11 . 5 1 AOE 151 | . . 70 81 . Terrain Rammed . | . . . . . Walls Destroyed . | . . . . . Machines Disabled . | . . . . . Actions | -11 -10 -10 -10 -9 --------- Run | Yrd Mat Min Sub Rec Total 5948 | 235 1644 593 2933 543 Wait 453 | 7 229 16 154 47 Move 5108 | 180 1286 559 2589 494 Hop . | . . . . . Pick Up 50 | 7 21 . 22 . Fast Attach 16 | 7 3 . 6 . Attach 14 | . 4 1 9 . Detach 3 | . . . 3 . Swap 34 | . 19 2 13 . Drop 31 | . 17 . 14 . Fire 235 | 34 64 15 120 2 Melee . | . . . . . Ram . | . . . . . Kick 1 | . 1 . . . Crush . | . . . . . Escape Stasis . | . . . . . Rewire . | . . . . . Trap . | . . . . . Miscellaneous 3 | . . . 3 . Route ------- -11/Scrapyard -10/Materials (discovered 6 exits: [*Mat x3] / *Min x2 / *Sub) -10/Mines (discovered 4 exits: [*Mat x2] / [*Exi] / *Sub) -10/Subcaves (discovered 3 exits: [*Mat x2] / *Rec) -9/Recycling (discovered 1 exit: [*Fac]) History --------- Turn | Location | Event 12 | -11/Scrapyard | Discovered new exit (range 16) 348 | -11/Scrapyard | Entered Materials 365 | -10/Materials | Build established: Mutant 577 | -10/Materials | Discovered new exit (range 8) 752 | -10/Materials | Discovered new exit (range 5) 755 | -10/Materials | Discovered new exit (range 11) 873 | -10/Materials | Discovered new exit (range 15) 1248 | -10/Materials | Derelicts attacked the area 1274 | -10/Materials | Learned 2 Storage zone layouts 1307 | -10/Materials | Learned Storage emergency access door positions 1913 | -10/Materials | Discovered new exit (range 14) 2053 | -10/Materials | Repaired Corrupted Sub. Shrapnel Launcher 2062 | -10/Materials | Discovered new exit (range 14) 2549 | -10/Materials | Entered Mines 2553 | -10/Mines | Assisted by bots powering up and referring to "LRC-V3" 2749 | -10/Mines | Discovered new exit (range 10) 2951 | -10/Mines | Discovered new exit (range 11) 3077 | -10/Mines | Deemed a non-threat by the Exiles lab entrance 3078 | -10/Mines | Discovered new exit (range 5) 3140 | -10/Mines | Discovered new exit (range 5) 3286 | -10/Mines | Entered Subcaves 3286 | -10/Subcaves | Accompanied by 1 ally 3301 | -10/Subcaves | Learned location of 1 exit from Materials 3890 | -10/Subcaves | Core integrity fell below 50% 4105 | -10/Subcaves | Discovered new exit (range 8) 4115 | -10/Subcaves | Discovered new exit (range 16) 4575 | -10/Subcaves | Visited 4L-MR0's lab 4587 | -10/Subcaves | Found Tower Shield 4942 | -10/Subcaves | Disturbed a concealed Subdweller 5342 | -10/Subcaves | Shifting Twisted Machinery released Sub. Monowheel 5350 | -10/Subcaves | Shifting Twisted Machinery released Sub. Monowheel 5637 | -10/Subcaves | A swath of the cavern ceiling suddenly collapsed 5662 | -10/Subcaves | Core integrity fell below 20% 6083 | -10/Subcaves | Discovered new exit (range 10) 6158 | -10/Subcaves | Build established: Scavenger-Mutant 6900 | -10/Subcaves | Entered Recycling 7132 | -9/Recycling | Discovered new exit (range 9) 7204 | -9/Recycling | Build established: Mutant 7435 | -9/Recycling | Scanned before Scraplab entrance 7544 | -9/Recycling | Destroyed by P-60 Hacker with Shock Rifle Last Messages --------------- Trojan loaded successfully. Testing... Terminal linked with 3 systems. Please expand to 1 more system! >>Trojan(Botnet) Trojan loaded successfully. Testing... Terminal linked with 3 systems. Awaiting botnet instructions. 07435_ LOCAL NARROWCAST: You may approach the wall. 07480_ Connecting with Recycling Unit... >>Retrieve(Components) Retrieving 3 components... Disposable Heat Sink Autogun Autogun >>Force(Tunnel) DISCOVERED[-2/Research] 07534_ P-60 Hacker springs to life. 07543_ P-60 Hacker destroyed. Map ----- +----------------------------------------------------+ | | | | | | | | | | | | | ?????????????????????????????????????????????????? | | ?????????????????????????????????????????????????? | | ?????????????????????????????????????????????????? | | ?????????????????????????????????????????????????? | | ?????????????????????????????????????????????????? | | ?????????????????????????????????????????????????? | | ?????????????????????????????????????????????????? | | ?????????????????????????????????????????????????? | | ?????????????????????????????????????????????????? | | ?#########???????????????????????????????????????? | | ?# #???????????????????????????????????????? | | ?# #???????????????????????????????????????? | | ?# #????????????????##############?????????? | | ?# #????????????????# ! / ??????????? | | ?####+####????????????????# ]! ???????????? | | ????# ##################### ????????????? | | ????# # ! ! ??????????????? | | ????# ############# #### #? %= ???????????????? | | ?####+#####???????# #??# #? [ ????????????????? | | ?# #???#####+#### @#?#/"##+#######????????? | | ?# """ #???# #*p### #????? | | ?# """""#???# """ #=!! +????? | | ?# """""#???# """ # #????? | | ?# """""#???# """ # """ """ ?????? | | ?# """ #???# # """ """ ?????? | | ## #???# ""[ # """ """ ??????? | | + #???# "Y[ + ??????? | | ## #???# ""! # ??????? | | ?##########???# # """ """ ??????? | | ??????????????########+# """ """ ????????? | | ?????????????????????# # """ """ ??????? | | #############????????# ??????? | | #????????# ??? ??? | | """"" #????????# """ """ ??? ??? | | """"" #????????# ### """ """ ????? ??? | | """"" #????????# #?# """ """ #?????? ??? | | #????????# #?# #?????? +?? | | #########+###?########+### #?????# #?? | | ????????# #???# # ####### #?????# #?? | | #####???# #???# # #?????# #????? #?? | | #???# #???# + #######+#r#???# #?? | | " #???# #???# """ """ # # ! =#???# #?? | | " #???# #???# """ """ # # [ r#??## ##? | | " #???# #???# """ """ # # [! #### ## | +----------------------------------------------------+ Best States ------------- Heat Dissipation 25 Coolant Potential 50 Energy Generation 10 Energy Capacity 250 Matter Stores 300 Matter Capacity 300 Sight Range 16 Terrain Scan Range 16 Terrain Scan Density 10 Armor Coverage 800 Core Shielding 20 Evasion (%) 55 Recoil Reduction 2 Authchip Count 1 Item Schematics ----------------- None Robot Schematics ------------------ None Fabricated ------------ Nothing Repaired ---------- Sub. Shrapnel Launcher | 61% | -10/Materials | Corrupted Studied --------- None Alien Tech Used ----------------- None Achievements -------------- None Challenges ------------ None Game ------ Seed ChromaticNodeDatajack Manual? 0 Play Time 00:44:12 Cumulative 756.7 hours Start 2025.12.01 @ 03:49:25 End 2025.12.01 @ 04:33:35 Sessions 1 Manual Loads 0 Difficulty Rogue Special Mode None Game No. 527 Rogue 527 Adventurer 0 Explorer 0 Win Type - Total 1 Types 1/0/0/0/0/0/0/0/0/0 Lore% 76 Gallery% 69 Achievement% 49 Wizard Run 0 Options --------- Layout 1 ASCII 0 Keyboard 0 Movement Mouse Keybinds 0 Fullscreen 1 Font 20/SmallcapsGlow Map View 54x42 Zoom Use 0% Tactical HUD 1 Map Filters NONE Filters NONE Steam 1 RUN: 72b3ebf9-a19b-4981-bf81-e3e5097abad4